fUSD/lending_fUSD_20260514
["ID","MTS","AMOUNT","RATE_DAILY","PERIOD"]
[422207791,1778697031000,-192.09561961,0.00013699,2]
[422207789,1778697031000,-1200.0,0.00013697,2]
[422207793,1778697031000,-166.66,0.00013699,2]
[422207792,1778697031000,-200.0,0.00013699,2]
[422207790,1778697031000,-2878.84423868,0.00013698,2]
[422207814,1778697032000,-166.66,0.00014021,2]
[422207816,1778697032000,-150.0,0.00014064,2]
[422207815,1778697032000,-610.35,0.00014062,2]
[422207813,1778697032000,-250.0,0.00014,2]
[422207811,1778697032000,-150.0,0.00013987,2]
[422207808,1778697032000,-186.4,0.00013923,2]
[422207809,1778697032000,-186.4,0.00013923,2]
[422207810,1778697032000,-150.0,0.00013949,2]
[422207812,1778697032000,-150.0,0.00013987,2]
[422207817,1778697032000,-167.64,0.00014179,2]
[422207806,1778697032000,-166.66,0.0001386,2]
[422207804,1778697032000,-160.0,0.00013819,2]
[422207802,1778697032000,-318.12,0.00013814,2]
[422207803,1778697032000,-200.0,0.00013814,2]
[422207801,1778697032000,-161.35,0.00013755,2]
[422207799,1778697032000,-150.0,0.00013737,2]
[422207800,1778697032000,-197.1,0.00013738,2]
[422207807,1778697032000,-150.0,0.00013862,2]
[422207805,1778697032000,-150.0,0.00013834,2]
[422207820,1778697032000,-166.66,0.00014182,2]
[422207823,1778697032000,-150.0,0.00014237,2]
[422207838,1778697032000,-1610.89109739,0.00014599,2]
[422207837,1778697032000,-93670.87504639,0.00014599,2]
[422207832,1778697032000,-150.0,0.00014487,2]
[422207835,1778697032000,-3961.8,0.00014592,2]
[422207831,1778697032000,-150.0,0.00014487,2]
[422207833,1778697032000,-166.66,0.00014504,2]
[422207834,1778697032000,-150.0,0.00014525,2]
[422207830,1778697032000,-2334.12,0.00014466,2]
[422207818,1778697032000,-150.0,0.00014179,2]
[422207826,1778697032000,-166.66,0.00014343,2]
[422207836,1778697032000,-125325.35138996,0.00014599,2]
[422207828,1778697032000,-610.35,0.00014397,2]
[422207827,1778697032000,-500.0,0.00014396,2]
[422207825,1778697032000,-150.0,0.00014295,2]
[422207824,1778697032000,-150.0,0.00014237,2]
[422207822,1778697032000,-150.0,0.00014237,2]
[422207821,1778697032000,-150.0,0.00014237,2]
[422207829,1778697032000,-150.0,0.0001441,2]
[422207819,1778697032000,-150.0,0.00014179,2]
[422207842,1778697038000,-31658.66975288,0.00014599,2]
[422207846,1778697039000,-1173.39542184,0.00014599,2]
[422207847,1778697040000,-568.6548492,0.00014599,2]
[422207861,1778697041000,-262452.12284234,0.00014599,2]
[422207892,1778697041000,-150.0,0.00014604,2]
[422207894,1778697041000,-500.0,0.00014604,2]
[422207898,1778697041000,-150.0,0.00014604,2]
[422207908,1778697041000,-150.0,0.00014604,2]
[422207900,1778697041000,-500.0,0.00014604,2]
[422207902,1778697041000,-150.0,0.00014604,2]
[422207890,1778697041000,-500.0,0.00014604,2]
[422207896,1778697041000,-150.0,0.00014604,2]
[422207905,1778697041000,-150.0,0.00014604,2]
[422207906,1778697041000,-500.0,0.00014604,2]
[422207889,1778697041000,-500.0,0.00014604,2]
[422207910,1778697041000,-500.0,0.00014604,2]
[422207915,1778697041000,-500.0,0.00014604,2]
[422207926,1778697041000,-500.0,0.00014604,2]
[422207928,1778697041000,-500.0,0.00014604,2]
[422207931,1778697041000,-500.0,0.00014604,2]
[422207916,1778697041000,-250.0,0.00014604,2]
[422207935,1778697041000,-500.0,0.00014604,2]
[422207920,1778697041000,-150.0,0.00014604,2]
[422207924,1778697041000,-150.0,0.00014604,2]
[422207919,1778697041000,-273.0,0.00014604,2]
[422207933,1778697041000,-500.0,0.00014604,2]
[422207913,1778697041000,-150.0,0.00014604,2]
[422207887,1778697041000,-500.0,0.00014604,2]
[422207888,1778697041000,-500.0,0.00014604,2]
[422207886,1778697041000,-500.0,0.00014604,2]
[422207863,1778697041000,-572.856179,0.00014602,2]
[422207864,1778697041000,-500.0,0.00014604,2]
[422207922,1778697041000,-200.0,0.00014604,2]
[422207866,1778697041000,-559.4850956,0.00014604,2]
[422207873,1778697041000,-500.0,0.00014604,2]
[422207872,1778697041000,-167.83513648,0.00014604,2]
[422207868,1778697041000,-150.0,0.00014604,2]
[422207870,1778697041000,-500.0,0.00014604,2]
[422207869,1778697041000,-150.0,0.00014604,2]
[422207867,1778697041000,-150.0,0.00014604,2]
[422207871,1778697041000,-252.82730704,0.00014604,2]
[422207874,1778697041000,-500.0,0.00014604,2]
[422207875,1778697041000,-500.0,0.00014604,2]
[422207876,1778697041000,-500.0,0.00014604,2]
[422207877,1778697041000,-176.32486522,0.00014604,2]
[422207878,1778697041000,-150.0,0.00014604,2]
[422207884,1778697041000,-500.0,0.00014604,2]
[422207881,1778697041000,-272.71182553,0.00014604,2]
[422207879,1778697041000,-150.0,0.00014604,2]
[422207880,1778697041000,-150.0,0.00014604,2]
[422207885,1778697041000,-500.0,0.00014604,2]
[422207883,1778697041000,-175.06603521,0.00014604,2]
[422207882,1778697041000,-150.0,0.00014604,2]
[422207862,1778697041000,-319.545372,0.00014602,2]
[422207939,1778697041000,-500.0,0.00014604,2]
[422207865,1778697041000,-500.0,0.00014604,2]
[422207943,1778697041000,-500.0,0.00014604,2]
[422207992,1778697041000,-7046.23619979,0.00014728,2]
[422207994,1778697041000,-610.35,0.00014731,2]
[422208008,1778697041000,-500.0,0.00014791,2]
[422207996,1778697041000,-150.0,0.00014737,2]
[422208010,1778697041000,-500.0,0.00014791,2]
[422208012,1778697041000,-500.0,0.00014791,2]
[422208026,1778697041000,-500.0,0.00014791,2]
[422208028,1778697041000,-500.0,0.00014791,2]
[422208014,1778697041000,-500.0,0.00014791,2]
[422208033,1778697041000,-500.0,0.00014791,2]
[422208024,1778697041000,-500.0,0.00014791,2]
[422208016,1778697041000,-500.0,0.00014791,2]
[422208018,1778697041000,-500.0,0.00014791,2]
[422208035,1778697041000,-500.0,0.00014791,2]
[422208022,1778697041000,-500.0,0.00014791,2]
[422208020,1778697041000,-500.0,0.00014791,2]
[422208036,1778697041000,-500.0,0.00014791,2]
[422208039,1778697041000,-500.0,0.00014791,2]
[422208041,1778697041000,-500.0,0.00014791,2]
[422208042,1778697041000,-500.0,0.00014791,2]
[422208044,1778697041000,-500.0,0.00014791,2]
[422208046,1778697041000,-500.0,0.00014791,2]
[422207937,1778697041000,-500.0,0.00014604,2]
[422208006,1778697041000,-5869.24367734,0.00014788,2]
[422207990,1778697041000,-284.19832119,0.000147,21]
[422208030,1778697041000,-500.0,0.00014791,2]
[422208002,1778697041000,-6132.75588502,0.00014776,2]
[422208000,1778697041000,-7046.23619979,0.00014756,2]
[422207949,1778697041000,-150.0,0.0001464,2]
[422207941,1778697041000,-500.0,0.00014604,2]
[422207952,1778697041000,-3939.4294,0.00014656,2]
[422207948,1778697041000,-150.0,0.00014612,2]
[422207954,1778697041000,-6793.3795,0.00014656,2]
[422207958,1778697041000,-300.0,0.00014657,2]
[422207959,1778697041000,-300.0,0.00014657,2]
[422207956,1778697041000,-300.0,0.00014657,2]
[422207964,1778697041000,-300.0,0.00014657,2]
[422207962,1778697041000,-300.0,0.00014657,2]
[422207978,1778697041000,-250.0,0.00014657,2]
[422207945,1778697041000,-546.77980264,0.00014604,2]
[422207988,1778697041000,-7046.23619982,0.00014699,2]
[422207976,1778697041000,-265.04593993,0.00014657,2]
[422208004,1778697041000,-7046.23619979,0.00014785,2]
[422207999,1778697041000,-150.0,0.00014756,2]
[422207984,1778697041000,-2256.8907,0.00014692,2]
[422207972,1778697041000,-300.0,0.00014657,2]
[422207986,1778697041000,-2500.0,0.00014692,2]
[422207982,1778697041000,-3826.7364,0.00014692,2]
[422207969,1778697041000,-384.22620767,0.00014657,2]
[422207968,1778697041000,-250.0,0.00014657,2]
[422207965,1778697041000,-448.41821506,0.00014657,2]
[422207974,1778697041000,-300.0,0.00014657,2]
[422208134,1778697042000,-500.0,0.00014792,2]
[422208132,1778697042000,-500.0,0.00014792,2]
[422208136,1778697042000,-500.0,0.00014792,2]
[422208130,1778697042000,-500.2665976,0.00014792,2]
[422208138,1778697042000,-500.0,0.00014792,2]
[422208120,1778697042000,-500.0,0.00014792,2]
[422208115,1778697042000,-500.0,0.00014792,2]
[422208128,1778697042000,-500.81977375,0.00014792,2]
[422208126,1778697042000,-500.0,0.00014792,2]
[422208141,1778697042000,-500.0,0.00014792,2]
[422208122,1778697042000,-500.0,0.00014792,2]
[422208124,1778697042000,-500.0,0.00014792,2]
[422208153,1778697042000,-500.0,0.00014792,2]
[422208149,1778697042000,-578.64878065,0.00014792,2]
[422208159,1778697042000,-176.06175414,0.000148,2]
[422208157,1778697042000,-499.25011,0.00014792,2]
[422208155,1778697042000,-500.0,0.00014792,2]
[422208143,1778697042000,-500.0,0.00014792,2]
[422208161,1778697042000,-5869.24367734,0.00014811,2]
[422208145,1778697042000,-500.0,0.00014792,2]
[422208147,1778697042000,-500.0,0.00014792,2]
[422208163,1778697042000,-7046.23619979,0.00014814,2]
[422208165,1778697042000,-5869.24367734,0.00014833,2]
[422208177,1778697042000,-2500.0,0.00014836,2]
[422208179,1778697042000,-2500.0,0.00014836,2]
[422208151,1778697042000,-150.0,0.00014792,2]
[422208117,1778697042000,-521.49196449,0.00014792,2]
[422208058,1778697042000,-500.0,0.00014791,2]
[422208113,1778697042000,-500.0,0.00014792,2]
[422208055,1778697042000,-500.0,0.00014791,2]
[422208057,1778697042000,-500.0,0.00014791,2]
[422208060,1778697042000,-500.0,0.00014791,2]
[422208182,1778697042000,-7046.23619979,0.00014843,2]
[422208064,1778697042000,-286.66677507,0.00014791,2]
[422208052,1778697042000,-500.0,0.00014791,2]
[422208048,1778697042000,-500.0,0.00014791,2]
[422208050,1778697042000,-500.0,0.00014791,2]
[422208063,1778697042000,-500.0,0.00014791,2]
[422208071,1778697042000,-500.0,0.00014791,2]
[422208076,1778697042000,-500.0,0.00014791,2]
[422208083,1778697042000,-500.0,0.00014791,2]
[422208074,1778697042000,-500.0,0.00014791,2]
[422208080,1778697042000,-500.0,0.00014791,2]
[422208085,1778697042000,-500.0,0.00014791,2]
[422208078,1778697042000,-500.0,0.00014791,2]
[422208087,1778697042000,-500.0,0.00014791,2]
[422208092,1778697042000,-500.0,0.00014791,2]
[422208099,1778697042000,-500.0,0.00014791,2]
[422208094,1778697042000,-500.0,0.00014791,2]
[422208096,1778697042000,-500.0,0.00014791,2]
[422208090,1778697042000,-500.0,0.00014791,2]
[422208105,1778697042000,-500.0,0.00014792,2]
[422208111,1778697042000,-500.0,0.00014792,2]
[422208101,1778697042000,-500.0,0.00014791,2]
[422208103,1778697042000,-500.0,0.00014792,2]
[422208109,1778697042000,-500.0,0.00014792,2]
[422208107,1778697042000,-500.0,0.00014792,2]
[422208169,1778697042000,-313.0427971,0.00014836,2]
[422208190,1778697042000,-33166.2013,0.00014851,2]
[422208173,1778697042000,-2500.0,0.00014836,2]
[422208248,1778697042000,-263.40146376,0.000149,2]
[422208251,1778697042000,-36193.49698045,0.000149,2]
[422208253,1778697042000,-327.0,0.00014904,2]
[422208264,1778697042000,-327.0,0.00014924,2]
[422208266,1778697042000,-327.0,0.00014942,2]
[422208268,1778697042000,-327.0,0.00014951,2]
[422208274,1778697042000,-500.0,0.00014952,2]
[422208255,1778697042000,-327.0,0.00014905,2]
[422208259,1778697042000,-321.0,0.00014918,2]
[422208256,1778697042000,-321.0,0.00014909,2]
[422208271,1778697042000,-500.0,0.00014952,2]
[422208260,1778697042000,-327.0,0.00014921,2]
[422208246,1778697042000,-7046.23619979,0.000149,2]
[422208262,1778697042000,-327.0,0.00014923,2]
[422208289,1778697042000,-500.0,0.00014952,2]
[422208278,1778697042000,-500.0,0.00014952,2]
[422208292,1778697042000,-263.16091522,0.00014952,2]
[422208300,1778697042000,-327.0,0.00014972,2]
[422208295,1778697042000,-330.0,0.00014958,2]
[422208297,1778697042000,-231.0,0.00014966,2]
[422208166,1778697042000,-1672.61888549,0.00014836,2]
[422208303,1778697042000,-231.94208573,0.00014986,2]
[422208280,1778697042000,-500.0,0.00014952,2]
[422208286,1778697042000,-500.0,0.00014952,2]
[422208305,1778697042000,-150.0,0.00014986,2]
[422208309,1778697042000,-158.63356965,0.00014986,2]
[422208276,1778697042000,-500.0,0.00014952,2]
[422208243,1778697042000,-5869.24367734,0.000149,2]
[422208283,1778697042000,-500.0,0.00014952,2]
[422208231,1778697042000,-202.85381442,0.00014898,2]
[422208235,1778697042000,-342.97,0.000149,2]
[422208185,1778697042000,-321.0,0.00014849,2]
[422208175,1778697042000,-2500.0,0.00014836,2]
[422208171,1778697042000,-2500.0,0.00014836,2]
[422208187,1778697042000,-1247.82977324,0.0001485,2]
[422208192,1778697042000,-2000.0,0.00014851,2]
[422208206,1778697042000,-327.0,0.00014868,2]
[422208208,1778697042000,-150.0,0.00014871,2]
[422208210,1778697042000,-7046.23619979,0.00014871,2]
[422208212,1778697042000,-337.0,0.00014876,2]
[422208214,1778697042000,-5869.24367734,0.00014878,2]
[422208198,1778697042000,-327.0,0.00014856,2]
[422208196,1778697042000,-5869.24367734,0.00014855,2]
[422208307,1778697042000,-150.0,0.00014986,2]
[422208200,1778697042000,-253.0,0.00014856,2]
[422208237,1778697042000,-280.62,0.000149,2]
[422208233,1778697042000,-10207.52550668,0.000149,2]
[422208241,1778697042000,-383.96511586,0.000149,2]
[422208239,1778697042000,-10000.0,0.000149,2]
[422208228,1778697042000,-327.0,0.0001489,2]
[422208225,1778697042000,-327.0,0.00014888,2]
[422208194,1778697042000,-789.4,0.00014853,2]
[422208221,1778697042000,-302.0,0.00014881,2]
[422208219,1778697042000,-327.0,0.0001488,2]
[422208216,1778697042000,-339.0,0.00014878,2]
[422208202,1778697042000,-327.0,0.00014857,2]
[422208204,1778697042000,-327.0,0.00014863,2]
[422208223,1778697042000,-312.0,0.00014885,2]
[422208351,1778697043000,-300.0,0.00014999,2]
[422208334,1778697043000,-793821.037138,0.00014998,2]
[422208347,1778697043000,-150.0,0.00014999,2]
[422208345,1778697043000,-3935.194452,0.00014998,2]
[422208328,1778697043000,-327.0,0.00014994,2]
[422208332,1778697043000,-22440.1163647,0.00014997,2]
[422208326,1778697043000,-157.71696169,0.0001499,2]
[422208330,1778697043000,-151.0,0.00014997,2]
[422208321,1778697043000,-327.0,0.0001499,2]
[422208319,1778697043000,-157.71696169,0.00014988,2]
[422208341,1778697043000,-6135.6912796,0.00014998,2]
[422208312,1778697043000,-251.47180583,0.00014986,2]
[422208314,1778697043000,-259.16287402,0.00014986,2]
[422208323,1778697043000,-157.71696169,0.0001499,2]
[422208317,1778697043000,-327.0,0.00014988,2]
[422208336,1778697043000,-1057.3585941,0.00014998,2]
[422208353,1778697043000,-300.0,0.00014999,2]
[422208338,1778697043000,-9563.8635869,0.00014998,2]
[422208398,1778697043000,-150.60061714,0.00014836,2]
[422208376,1778697043000,-906412.56030308,0.00015,2]
[422208364,1778697043000,-7722226.01471792,0.00015,2]
[422208367,1778697043000,-306.54,0.00015,2]
[422208369,1778697043000,-2075.73057974,0.00015,2]
[422208400,1778697043000,-660.91320783,0.00015,2]
[422208371,1778697043000,-2531.12306646,0.00015,14]
[422208374,1778697043000,-8080.85641291,0.00015,2]
[422208349,1778697043000,-300.0,0.00014999,2]
[422208343,1778697043000,-3164.9238948,0.00014998,2]
[422208362,1778697043000,-324.23525548,0.00014999,2]
[422208357,1778697043000,-300.0,0.00014999,2]
[422208359,1778697043000,-300.0,0.00014999,2]
[422208355,1778697043000,-300.0,0.00014999,2]
[422208729,1778697045000,-2045.55612377,0.000149,2]
[422208731,1778697045000,-1938.59387623,0.00015,2]
[422208725,1778697045000,-202.85381441,0.00014899,2]
[422208726,1778697045000,-938.74618559,0.000149,2]
[422208735,1778697046000,-49757.41431593,0.00015,2]
[422208733,1778697046000,-1427.90946529,0.00015,2]
[422209173,1778697197000,671.40575872,0.0001432,21]
[422209174,1778697198000,671.40575872,0.00014392,21]
[422209175,1778697200000,671.40575872,0.00014443,21]
[422209176,1778697201000,671.40575872,0.00014462,21]
[422209177,1778697318000,1539.0,0.00027397,120]
[422209178,1778697318000,1539.0,0.00027397,120]
[422209180,1778697319000,1574.03955263,0.00027397,120]
[422209179,1778697319000,1539.0,0.00027397,120]
[422209182,1778697320000,151.0,0.00027397,120]
[422209181,1778697320000,151.0,0.00027397,120]
[422209183,1778697321000,196.36174983,0.00027397,120]
[422209184,1778697336000,152.0,7.54e-05,2]
[422209185,1778697375000,709.29886821,0.0001432,21]
[422209186,1778697377000,709.29886821,0.00014392,21]
[422209187,1778697378000,709.29886821,0.00014443,21]
[422209188,1778697379000,709.29886821,0.00014462,21]
[422209190,1778697618000,1539.0,0.00027397,120]
[422209189,1778697618000,1539.0,0.00027397,120]
[422209191,1778697619000,1539.0,0.00027397,120]
[422209192,1778697619000,1539.0,0.00027397,120]
[422209194,1778697620000,1539.0,0.00027397,120]
[422209193,1778697620000,1539.0,0.00027397,120]
[422209196,1778697621000,1539.0,0.00027397,120]
[422209195,1778697621000,1539.0,0.00027397,120]
[422209197,1778697622000,1539.0,0.00027397,120]
[422209199,1778697623000,1539.0,0.00027397,120]
[422209198,1778697623000,1539.0,0.00027397,120]
[422209201,1778697624000,1446.7258936,0.00027397,120]
[422209200,1778697624000,1539.0,0.00027397,120]
[422209204,1778697920000,300.0,0.00027397,120]
[422209205,1778698138000,151.0,0.0001,2]
[422209206,1778698138000,434.87538892,0.0001,2]
[422209207,1778698140000,217.43769446,0.0001,2]
[422209232,1778698234000,-150.0,0.00013638,2]
[422209231,1778698234000,-163.36,0.0001355,2]
[422209233,1778698234000,-159.07,0.00013645,2]
[422209235,1778698234000,-1149.39,0.00013699,2]
[422209234,1778698234000,-150.99,0.00013699,2]
[422209237,1778698234000,-5427.89,0.00013699,2]
[422209236,1778698234000,-9999.99,0.00013699,2]
[422209241,1778698234000,-22280.36,0.00013699,2]
[422209239,1778698234000,-2577.64,0.00013699,2]
[422209247,1778698234000,-200.0,0.00013699,2]
[422209245,1778698234000,-3870.3,0.00013699,2]
[422209253,1778698234000,-602.9190127,0.00013854,2]
[422209248,1778698234000,-166.66,0.00013699,2]
[422209252,1778698234000,-166.66,0.00013836,2]
[422209251,1778698234000,-484.46,0.00013791,2]
[422209230,1778698234000,-205.75,0.00013535,2]
[422209243,1778698234000,-7641.72,0.00013699,2]
[422209228,1778698234000,-150.0,0.00013488,2]
[422209216,1778698234000,-471.42341497,0.00013185,2]
[422209227,1778698234000,-150.0,0.00013488,2]
[422209210,1778698234000,-427.65,0.00013052,2]
[422209211,1778698234000,-340.059577,0.00013052,2]
[422209212,1778698234000,-59.940423,0.00013084,2]
[422209213,1778698234000,-190.059577,0.00013084,2]
[422209214,1778698234000,-161.35,0.00013117,2]
[422209215,1778698234000,-1528.57658503,0.00013185,2]
[422209250,1778698234000,-150.0,0.00013787,2]
[422209219,1778698234000,-199.23,0.00013401,2]
[422209217,1778698234000,-282.63591682,0.00013222,2]
[422209218,1778698234000,-1185.2659,0.00013355,2]
[422209221,1778698234000,-4611.96493408,0.0001345,2]
[422209220,1778698234000,-1200.0,0.00013449,2]
[422209222,1778698234000,-484.46,0.00013455,2]
[422209224,1778698234000,-150.0,0.00013488,2]
[422209223,1778698234000,-300.0,0.00013487,2]
[422209225,1778698234000,-150.0,0.00013488,2]
[422209226,1778698234000,-150.0,0.00013488,2]
[422209229,1778698234000,-150.0,0.00013488,2]
[422209256,1778698234000,-186.4,0.00013937,2]
[422209254,1778698234000,-150.0,0.00013862,2]
[422209257,1778698234000,-186.4,0.00013937,2]
[422209281,1778698234000,-500.0,0.00014282,2]
[422209279,1778698234000,-813.0,0.00014282,2]
[422209282,1778698234000,-500.0,0.00014282,2]
[422209280,1778698234000,-500.0,0.00014282,2]
[422209284,1778698234000,-813.0,0.00014282,2]
[422209283,1778698234000,-500.0,0.00014282,2]
[422209285,1778698234000,-500.0,0.00014282,2]
[422209286,1778698234000,-500.0,0.00014282,2]
[422209277,1778698234000,-214.88413581,0.00014282,2]
[422209288,1778698234000,-150.0,0.00014282,2]
[422209289,1778698234000,-500.0,0.00014282,2]
[422209291,1778698234000,-813.0,0.00014282,2]
[422209290,1778698234000,-500.0,0.00014282,2]
[422209292,1778698234000,-150.0,0.00014282,2]
[422209293,1778698234000,-500.0,0.00014282,2]
[422209255,1778698234000,-150.0,0.00013937,2]
[422209296,1778698234000,-150.0,0.00014282,2]
[422209295,1778698234000,-813.0,0.00014282,2]
[422209287,1778698234000,-813.0,0.00014282,2]
[422209276,1778698234000,-500.0,0.00014282,2]
[422209294,1778698234000,-500.0,0.00014282,2]
[422209275,1778698234000,-500.0,0.00014282,2]
[422209278,1778698234000,-285.11586419,0.00014282,2]
[422209259,1778698234000,-166.66,0.00013973,2]
[422209261,1778698234000,-150.0,0.00013987,2]
[422209260,1778698234000,-295.8177585,0.00013973,2]
[422209263,1778698234000,-167.32,0.00014055,2]
[422209262,1778698234000,-325.10661514,0.00014049,2]
[422209264,1778698234000,-150.0,0.00014087,2]
[422209265,1778698234000,-507.83337482,0.00014105,2]
[422209258,1778698234000,-186.4,0.00013937,2]
[422209268,1778698234000,-150.0,0.00014216,2]
[422209267,1778698234000,-484.46,0.00014128,2]
[422209269,1778698234000,-12951.36610042,0.00014217,2]
[422209270,1778698234000,-47527.20619958,0.00014217,2]
[422209271,1778698234000,-150.0,0.00014237,2]
[422209272,1778698234000,-150.0,0.00014237,2]
[422209273,1778698234000,-150.0,0.00014237,2]
[422209266,1778698234000,-166.66,0.0001411,2]
[422209274,1778698234000,-166.66,0.00014247,2]
[422209318,1778698235000,-813.0,0.00014282,2]
[422209321,1778698235000,-500.0,0.00014282,2]
[422209320,1778698235000,-813.0,0.00014282,2]
[422209317,1778698235000,-813.0,0.00014282,2]
[422209319,1778698235000,-500.0,0.00014282,2]
[422209323,1778698235000,-500.0,0.00014282,2]
[422209324,1778698235000,-813.0,0.00014282,2]
[422209327,1778698235000,-813.0,0.00014282,2]
[422209326,1778698235000,-500.0,0.00014282,2]
[422209325,1778698235000,-500.0,0.00014282,2]
[422209328,1778698235000,-201.20558508,0.00014282,2]
[422209329,1778698235000,-500.0,0.00014282,2]
[422209334,1778698235000,-500.0,0.00014282,2]
[422209316,1778698235000,-250.0,0.00014282,2]
[422209330,1778698235000,-500.0,0.00014282,2]
[422209322,1778698235000,-813.0,0.00014282,2]
[422209315,1778698235000,-813.0,0.00014282,2]
[422209305,1778698235000,-813.0,0.00014282,2]
[422209312,1778698235000,-813.0,0.00014282,2]
[422209335,1778698235000,-220.63403268,0.00014282,2]
[422209298,1778698235000,-500.0,0.00014282,2]
[422209297,1778698235000,-500.0,0.00014282,2]
[422209301,1778698235000,-475.9098632,0.00014282,2]
[422209299,1778698235000,-150.0,0.00014282,2]
[422209300,1778698235000,-813.0,0.00014282,2]
[422209303,1778698235000,-150.0,0.00014282,2]
[422209302,1778698235000,-500.0,0.00014282,2]
[422209304,1778698235000,-150.0,0.00014282,2]
[422209307,1778698235000,-150.0,0.00014282,2]
[422209306,1778698235000,-500.0,0.00014282,2]
[422209309,1778698235000,-150.0,0.00014282,2]
[422209308,1778698235000,-813.0,0.00014282,2]
[422209311,1778698235000,-150.0,0.00014282,2]
[422209310,1778698235000,-273.0,0.00014282,2]
[422209313,1778698235000,-200.82917697,0.00014282,2]
[422209333,1778698235000,-813.0,0.00014282,2]
[422209314,1778698235000,-150.0,0.00014282,2]
[422209336,1778698235000,-813.0,0.00014282,2]
[422209356,1778698235000,-536.0,0.00014317,2]
[422209355,1778698235000,-536.0,0.00014317,2]
[422209357,1778698235000,-536.0,0.00014317,2]
[422209359,1778698235000,-419.93674606,0.00014317,2]
[422209360,1778698235000,-536.0,0.00014317,2]
[422209358,1778698235000,-116.06325394,0.00014317,2]
[422209363,1778698235000,-536.0,0.00014317,2]
[422209362,1778698235000,-536.0,0.00014317,2]
[422209365,1778698235000,-536.0,0.00014317,2]
[422209366,1778698235000,-536.0,0.00014317,2]
[422209364,1778698235000,-536.0,0.00014317,2]
[422209368,1778698235000,-536.0,0.00014317,2]
[422209369,1778698235000,-536.0,0.00014317,2]
[422209370,1778698235000,-200.08523421,0.00014317,2]
[422209332,1778698235000,-387.5652274,0.00014282,2]
[422209352,1778698235000,-536.0,0.00014317,2]
[422209353,1778698235000,-536.0,0.00014317,2]
[422209361,1778698235000,-536.0,0.00014317,2]
[422209354,1778698235000,-536.0,0.00014317,2]
[422209367,1778698235000,-536.0,0.00014317,2]
[422209338,1778698235000,-813.0,0.00014282,2]
[422209339,1778698235000,-813.0,0.00014282,2]
[422209337,1778698235000,-813.0,0.00014282,2]
[422209340,1778698235000,-813.0,0.00014282,2]
[422209331,1778698235000,-112.4347726,0.00014282,2]
[422209343,1778698235000,-500.0,0.00014282,2]
[422209345,1778698235000,-138.09876477,0.00014282,2]
[422209341,1778698235000,-813.0,0.00014282,2]
[422209344,1778698235000,-361.90123523,0.00014282,2]
[422209346,1778698235000,-500.0,0.00014282,2]
[422209349,1778698235000,-536.0,0.00014317,2]
[422209347,1778698235000,-213.01114122,0.00014282,2]
[422209348,1778698235000,-150.0,0.00014282,2]
[422209351,1778698235000,-536.0,0.00014317,2]
[422209350,1778698235000,-536.0,0.00014317,2]
[422209342,1778698235000,-814.3184214,0.00014282,2]
[422209397,1778698238000,-273.72753334,0.00014317,2]
[422209398,1778698238000,-500.0,0.00014317,2]